[Event "EYCC Girls-U18 2019"]
[Site "Bratislava"]
[Date "2019.08.02"]
[Round "1.22"]
[White "Ferkova, Dominika"]
[Black "Kindler, Karolina"]
[Result "1-0"]
[ECO "D52"]
[WhiteElo "2009"]
[BlackElo "1709"]
[Annotator "NA"]
[PlyCount "93"]
[EventDate "2019.08.02"]
[EventType "swiss"]
[EventCountry "SVK"]
[SourceTitle "playchess.com"]
[Source "ChessBase"]
[SourceQuality "1"]
[TimeControl "40/5400+30:1800+30"]

1. d4 {[%emt 0:00:00]} d5 {[%emt 0:00:00]} 2. c4 {[%emt 0:00:00]} e6 {[%emt 0:00:00]} 3. Nc3 {[%emt 0:00:00]} Nf6 {[%emt 0:00:00]} 4. Nf3 {[%emt 0:00:00]} c6 {[%emt 0:00:01]} 5. Bg5 {[%emt 0:00:06]} Nbd7 {[%emt 0:00:14]} 6. e3 {[%emt 0:00:08]} Qa5 {[%emt 0:00:12]} 7. Bxf6 {[%emt 0:03:53]} Nxf6 {[%emt 0:00:13]} 8. Nd2 {[%emt 0:02:25]} Bb4 {[%emt 0:00:48]} 9. Qc2 {[%emt 0:02:14]} O-O {[%emt 0:01:14]} 10. Be2 {[%emt 0:02:14]} Re8 {[%emt 0:04:59]} 11. O-O {[%emt 0:04:49]} e5 {[%emt 0:08:27]} 12. dxe5 {[%emt 0:09:24]} Bxc3 {[%emt 0:02:48]} 13. Nb3 {[%emt 0:12:28]} Qc7 {[%emt 0:04:28]} 14. exf6 {[%emt 0:01:03]} Bxf6 {[%emt 0:00:48]} 15. cxd5 {[%emt 0:00:27]} Be5 {[%emt 0:00:15]} 16. h3 cxd5 {[%emt 0:07:15]} 17. Qxc7 {[%emt 0:21:09]} Bxc7 {[%emt 0:00:08]} 18. Bf3 {[%emt 0:03:34]} Be6 {[%emt 0:04:16]} 19. Rfd1 {[%emt 0:01:09]} Red8 {[%emt 0:03:37]} 20. Rd2 {[%emt 0:02:26]} Be5 {[%emt 0:27:14]} 21. Rad1 {[%emt 0:09:54]} b6 {[%emt 0:01:32]} 22. e4 {[%emt 0:06:05]} d4 {[%emt 0:00:42]} 23. Nxd4 {[%emt 0:00:45]} Bxa2 24. Nc6 Rxd2 {[%emt 0:09:33]} 25. Rxd2 {[%emt 0:00:32]} Bf4 {[%emt 0:01:21]} 26. Rd7 {[%emt 0:01:14]} a6 {[%emt 0:05:44]} 27. e5 {[%emt 0:02:40]} Re8 {[%emt 0:00:43]} 28. Rb7 {[%emt 0:00:42]} Bc4 {[%emt 0:02:15]} 29. g3 {[%emt 0:06:00]} Bc1 {[%emt 0:00:12]} 30. Rxb6 {[%emt 0:00:10]} Bb5 {[%emt 0:00:06]} 31. Nb8 {[%emt 0:08:33]} Rxe5 {[%emt 0:03:07]} 32. Nxa6 {[%emt 0:00:33]} g6 {[%emt 0:01:05]} 33. Nc7 {[%emt 0:00:39]} Re1+ {[%emt 0:01:14]} 34. Kh2 {[%emt 0:00:23]} Be2 {[%emt 0:01:32]} 35. Rb8+ {[%emt 0:00:32]} Kg7 {[%emt 0:00:10]} 36. Bd5 {[%emt 0:00:52]} Bf1 {[%emt 0:02:33]} 37. Bg2 {[%emt 0:00:48]} Bxg2 {[%emt 0:01:08]} 38. Kxg2 {[%emt 0:00:02]} Re2 {[%emt 0:00:06]} 39. b4 {[%emt 0:00:07]} Be3 {[%emt 0:01:13]} 40. Kf3 {[%emt 0:00:00]} Ba7 {[%emt 0:00:00]} 41. Kxe2 {[%emt 0:08:01]} Bxb8 {[%emt 0:01:51]} 42. Nd5 {[%emt 0:00:26]} f5 {[%emt 0:00:46]} 43. Kd3 {[%emt 0:02:51]} Ba7 {[%emt 0:02:57]} 44. f4 {[%emt 0:03:43]} Kf7 {[%emt 0:02:40]} 45. b5 {[%emt 0:05:32]} Ke6 {[%emt 0:00:44]} 46. b6 {[%emt 0:02:40]} Bb8 {[%emt 0:00:07]} 47. Nc7+ {[%emt 0:00:33] Kd5 Ke4+} 1-0

[Event "EYCC Girls-U18 2019"]
[Site "Bratislava"]
[Date "2019.08.02"]
[Round "1.23"]
[White "Mocanu, Valeria"]
[Black "Rudzinska, Michalina"]
[Result "1-0"]
[ECO "B42"]
[WhiteElo "1769"]
[BlackElo "2143"]
[Annotator "NA"]
[PlyCount "99"]
[EventDate "2019.08.02"]
[EventType "swiss"]
[EventCountry "SVK"]
[SourceTitle "playchess.com"]
[Source "ChessBase"]
[SourceQuality "1"]
[TimeControl "40/5400+30:1800+30"]

1. e4 {[%emt 0:00:00]} c5 {[%emt 0:00:00]} 2. Nf3 {[%emt 0:00:00]} e6 {[%emt 0:00:00]} 3. d4 {[%emt 0:00:00]} cxd4 {[%emt 0:00:00]} 4. Nxd4 {[%emt 0:00:00]} a6 {[%emt 0:00:00]} 5. Bd3 {[%emt 0:00:04]} Qc7 {[%emt 0:00:11]} 6. c4 {[%emt 0:01:26]} Nf6 {[%emt 0:00:28]} 7. Be3 {[%emt 0:00:33]} d6 {[%emt 0:07:30]} 8. h3 {[%emt 0:01:13]} Be7 {[%emt 0:00:49]} 9. Nc3 {[%emt 0:00:19]} Nbd7 {[%emt 0:00:14]} 10. Qd2 {[%emt 0:01:21]} O-O {[%emt 0:04:02]} 11. O-O {[%emt 0:00:11]} b6 {[%emt 0:00:53]} 12. a4 {[%emt 0:15:08]} Bb7 {[%emt 0:04:13]} 13. a5 {[%emt 0:03:49]} bxa5 {[%emt 0:01:56]} 14. Nb3 {[%emt 0:01:00]} Ne5 {[%emt 0:12:49]} 15. Nxa5 {[%emt 0:00:28]} Rfc8 {[%emt 0:00:36]} 16. Rfc1 {[%emt 0:08:42]} Nfd7 {[%emt 0:05:13]} 17. b4 {[%emt 0:18:22]} Bf6 {[%emt 0:07:57]} 18. Rab1 {[%emt 0:03:33]} Nxd3 {[%emt 0:10:23]} 19. Qxd3 {[%emt 0:01:07]} Ne5 {[%emt 0:01:25]} 20. Qe2 {[%emt 0:11:14]} Qd7 {[%emt 0:11:28]} 21. Nxb7 {[%emt 0:04:22]} Qxb7 {[%emt 0:00:08]} 22. Na4 {[%emt 0:00:14]} Rab8 {[%emt 0:08:00]} 23. f3 {[%emt 0:02:30]} Qe7 {[%emt 0:07:28]} 24. Nb6 {[%emt 0:02:37]} Rc6 {[%emt 0:05:49]} 25. c5 {[%emt 0:01:17]} dxc5 {[%emt 0:00:40]} 26. bxc5 {[%emt 0:00:54]} Ng6 {[%emt 0:03:37]} 27. Qxa6 {[%emt 0:03:44]} Be5 {[%emt 0:02:59]} 28. Qa4 {[%emt 0:04:24]} Qc7 {[%emt 0:01:28]} 29. Nd5 {[%emt 0:00:57]} Qc8 {[%emt 0:01:19]} 30. Nb4 {[%emt 0:02:30]} Rxb4 {[%emt 0:00:30]} 31. Qxb4 {[%emt 0:00:50]} Nf4 {[%emt 0:00:40]} 32. Bxf4 {[%emt 0:00:45]} Bxf4 {[%emt 0:00:05]} 33. Qb7 {[%emt 0:07:25]} h6 {[%emt 0:01:57]} 34. Qxc8+ {[%emt 0:01:24]} Rxc8 {[%emt 0:00:05]} 35. Rc3 {[%emt 0:02:37]} Rxc5 {[%emt 0:00:11]} 36. Rxc5 Be3+ {[%emt 0:00:05]} 37. Kf1 {[%emt 0:00:30]} Bxc5 {[%emt 0:00:04]} 38. Rb8+ {[%emt 0:00:13]} Kh7 {[%emt 0:00:07]} 39. Ke2 {[%emt 0:00:31]} Kg6 {[%emt 0:00:44]} 40. Rb5 {[%emt 0:00:00]} Bg1 {[%emt 0:00:00]} 41. f4 {[%emt 0:02:24]} Kf6 {[%emt 0:07:11]} 42. h4 {[%emt 0:09:33]} Bd4 {[%emt 0:01:48]} 43. Kf3 {[%emt 0:03:49]} g6 {[%emt 0:00:37]} 44. g4 {[%emt 0:03:10]} Bc3 {[%emt 0:00:44]} 45. h5 {[%emt 0:01:40]} Bd2 {[%emt 0:00:32]} 46. g5+ {[%emt 0:02:01]} Kg7 {[%emt 0:04:13]} 47. gxh6+ {[%emt 0:00:57]} Kxh6 {[%emt 0:00:06]} 48. Rb7 {[%emt 0:00:26]} f6 {[%emt 0:01:40]} 49. hxg6 {[%emt 0:00:33]} Kxg6 {[%emt 0:00:05]} 50. Re7 {[%emt 0:00:02]} 1-0

[Event "EYCC Girls-U18 2019"]
[Site "Bratislava"]
[Date "2019.08.02"]
[Round "1.24"]
[White "Redondo Benavente, Ana"]
[Black "Kulpa, Zuzanna"]
[Result "1-0"]
[ECO "B52"]
[WhiteElo "2176"]
[BlackElo "1802"]
[Annotator "NA"]
[PlyCount "99"]
[EventDate "2019.08.02"]
[EventType "swiss"]
[EventCountry "SVK"]
[SourceTitle "playchess.com"]
[Source "ChessBase"]
[SourceQuality "1"]
[TimeControl "40/5400+30:1800+30"]

1. e4 {[%emt 0:00:00]} c5 {[%emt 0:00:00]} 2. Nf3 {[%emt 0:00:00]} d6 {[%emt 0:00:00]} 3. Bb5+ {[%emt 0:00:00]} Bd7 {[%emt 0:00:03]} 4. Bxd7+ {[%emt 0:00:43]} Nxd7 {[%emt 0:00:08]} 5. c4 {[%emt 0:03:27]} Ngf6 {[%emt 0:00:27]} 6. Nc3 {[%emt 0:00:05]} Ne5 {[%emt 0:00:26]} 7. O-O {[%emt 0:04:02]} e6 {[%emt 0:00:45]} 8. Ne1 {[%emt 0:01:56]} Be7 {[%emt 0:10:08]} 9. f4 {[%emt 0:03:01]} Nc6 {[%emt 0:00:15]} 10. Nf3 {[%emt 0:01:04]} O-O {[%emt 0:01:23]} 11. Kh1 {[%emt 0:05:57]} d5 {[%emt 0:05:18]} 12. e5 {[%emt 0:03:24]} Ne4 {[%emt 0:01:35]} 13. Qe2 {[%emt 0:01:49]} Nxc3 {[%emt 0:02:51]} 14. dxc3 {[%emt 0:05:04]} dxc4 {[%emt 0:04:43]} 15. Qxc4 {[%emt 0:00:07]} Qd5 {[%emt 0:00:42]} 16. Qe2 {[%emt 0:04:48]} Rad8 {[%emt 0:02:10]} 17. Be3 {[%emt 0:00:14]} Qd3 {[%emt 0:04:26]} 18. Qf2 {[%emt 0:01:35]} b6 {[%emt 0:01:10]} 19. Rae1 {[%emt 0:02:56]} Rd5 {[%emt 0:09:03]} 20. g4 {[%emt 0:06:04]} f6 {[%emt 0:04:23]} 21. exf6 {[%emt 0:00:56]} Bxf6 {[%emt 0:03:02]} 22. Qg2 {[%emt 0:11:40]} Bd8 {[%emt 0:07:29]} 23. Bc1 {[%emt 0:15:02]} Qg6 {[%emt 0:07:11]} 24. Nd2 {[%emt 0:03:18]} h5 {[%emt 0:05:22]} 25. g5 {[%emt 0:04:55]} Bc7 {[%emt 0:05:02]} 26. c4 {[%emt 0:03:04]} Rd6 {[%emt 0:01:57]} 27. Ne4 {[%emt 0:00:00]} Rd4 {[%emt 0:03:43]} 28. Nf6+ {[%emt 0:03:48]} gxf6 {[%emt 0:01:28]} 29. Qxc6 {[%emt 0:00:02]} Bd8 {[%emt 0:02:49]} 30. Qxe6+ {[%emt 0:01:43]} Qf7 {[%emt 0:00:16]} 31. g6 {[%emt 0:06:00]} Qxe6 {[%emt 0:00:38]} 32. Rxe6 {[%emt 0:00:02]} f5 {[%emt 0:00:20]} 33. b3 {[%emt 0:00:07]} Rd7 {[%emt 0:01:58]} 34. Bb2 {[%emt 0:00:14]} Bh4 {[%emt 0:02:54]} 35. Be5 {[%emt 0:04:04]} Rfd8 {[%emt 0:00:47]} 36. Kg2 {[%emt 0:02:45]} Rd3 {[%emt 0:04:18]} 37. Rc6 {[%emt 0:03:10]} Be7 {[%emt 0:01:07]} 38. Re6 {[%emt 0:00:34]} Bf8 {[%emt 0:00:34]} 39. Rf2 {[%emt 0:00:47]} Bg7 {[%emt 0:00:55]} 40. Bc7 {[%emt 0:00:00]} Rf8 {[%emt 0:00:00]} 41. Be5 {[%emt 0:08:15]} Rd7 {[%emt 0:07:50]} 42. Kh3 {[%emt 0:02:34]} Rd3+ {[%emt 0:01:18]} 43. Kh4 {[%emt 0:01:02]} Rfd8 {[%emt 0:00:48]} 44. Bxg7 {[%emt 0:02:42]} Kxg7 {[%emt 0:02:41]} 45. Kxh5 {[%emt 0:01:48]} Rf8 {[%emt 0:01:25]} 46. Kg5 {[%emt 0:00:26]} Kg8 {[%emt 0:01:39]} 47. h4 {[%emt 0:05:05]} Rg3+ {[%emt 0:01:16]} 48. Kh6 {[%emt 0:00:16]} Rh3 {[%emt 0:00:10]} 49. h5 {[%emt 0:00:32]} Rg3 {[%emt 0:00:38]} 50. Rfe2 {[%emt 0:00:42]} 1-0

[Event "EYCC Girls-U18 2019"]
[Site "Bratislava"]
[Date "2019.08.04"]
[Round "3.1"]
[White "Nilssen, Ellen Fredericia"]
[Black "Badelka, Olga"]
[Result "1/2-1/2"]
[ECO "A38"]
[WhiteElo "2155"]
[BlackElo "2386"]
[Annotator "NA"]
[PlyCount "119"]
[EventDate "2019.08.02"]
[EventType "swiss"]
[EventCountry "SVK"]
[SourceTitle "playchess.com"]
[Source "ChessBase"]
[SourceQuality "1"]
[TimeControl "40/5400+30:1800+30"]

1. c4 {[%emt 0:00:00]} Nf6 {[%emt 0:00:32]} 2. g3 {[%emt 0:00:00]} c5 {[%emt 0:00:48]} 3. Nc3 {[%emt 0:00:39]} Nc6 {[%emt 0:00:43]} 4. Bg2 {[%emt 0:00:39]} g6 {[%emt 0:00:42]} 5. Nf3 {[%emt 0:00:07]} Bg7 {[%emt 0:00:04]} 6. O-O {[%emt 0:00:47]} d6 {[%emt 0:01:47]} 7. d4 {[%emt 0:01:22]} cxd4 {[%emt 0:00:16]} 8. Nxd4 {[%emt 0:00:12]} Bd7 {[%emt 0:00:18]} 9. Nb3 {[%emt 0:02:45]} b6 {[%emt 0:03:36]} 10. a4 {[%emt 0:09:12]} Rc8 {[%emt 0:01:10]} 11. Nd2 {[%emt 0:02:13]} Na5 {[%emt 0:11:09]} 12. b3 {[%emt 0:08:09]} d5 {[%emt 0:00:51]} 13. Bb2 {[%emt 0:14:01]} dxc4 {[%emt 0:00:20]} 14. b4 {[%emt 0:00:53]} Nc6 {[%emt 0:00:30]} 15. Nd5 {[%emt 0:05:59]} Be6 {[%emt 0:09:31]} 16. Nf4 {[%emt 0:07:21]} Nxb4 {[%emt 0:02:07]} 17. Nxe6 {[%emt 0:00:28]} fxe6 {[%emt 0:00:05]} 18. Rc1 {[%emt 0:00:50]} Bh6 {[%emt 0:15:17]} 19. Rxc4 {[%emt 0:03:32]} Nbd5 {[%emt 0:09:48]} 20. Bh3 {[%emt 0:04:44]} Bxd2 {[%emt 0:04:39]} 21. Rxc8 {[%emt 0:00:08]} Qxc8 {[%emt 0:00:03]} 22. Qxd2 {[%emt 0:00:06]} Rf8 {[%emt 0:01:31]} 23. e4 {[%emt 0:04:44]} Nc7 {[%emt 0:00:21]} 24. Qc2 {[%emt 0:00:19]} Qb7 {[%emt 0:03:43]} 25. Rc1 {[%emt 0:01:11]} Na6 {[%emt 0:01:06]} 26. Qc8+ {[%emt 0:05:41]} Qxc8 {[%emt 0:00:54]} 27. Rxc8+ {[%emt 0:00:05]} Kf7 {[%emt 0:00:03]} 28. Bxe6+ {[%emt 0:00:07]} Kg7 {[%emt 0:00:03]} 29. a5 {[%emt 0:07:01]} Rxc8 {[%emt 0:03:37]} 30. Bxc8 {[%emt 0:00:05]} Nc5 {[%emt 0:00:17]} 31. axb6 {[%emt 0:06:21]} axb6 {[%emt 0:00:03]} 32. f3 {[%emt 0:00:30]} Kf7 {[%emt 0:00:57]} 33. Bh3 {[%emt 0:00:58]} g5 {[%emt 0:09:02]} 34. Bf1 {[%emt 0:01:12]} Ne8 {[%emt 0:07:17]} 35. Bd4 {[%emt 0:05:31]} Nc7 {[%emt 0:00:51]} 36. Kf2 {[%emt 0:02:33]} N7e6 {[%emt 0:00:15]} 37. Bc4 {[%emt 0:00:45]} b5 {[%emt 0:00:45]} 38. Bxc5 {[%emt 0:03:21]} bxc4 {[%emt 0:00:04]} 39. Bb4 {[%emt 0:00:08]} Nd4 {[%emt 0:01:26]} 40. Bc5 {[%emt 0:00:00]} Nb3 {[%emt 0:00:00]} 41. Bb4 {[%emt 0:04:40]} Nc1 {[%emt 0:15:27]} 42. Ke3 {[%emt 0:05:24]} Nd3 {[%emt 0:00:13]} 43. Ba5 {[%emt 0:05:02]} e5 {[%emt 0:00:45]} 44. Bd8 {[%emt 0:03:44]} Kg6 {[%emt 0:02:09]} 45. Bc7 {[%emt 0:01:03]} h6 {[%emt 0:03:29]} 46. f4 {[%emt 0:01:00]} gxf4+ {[%emt 0:04:42]} 47. gxf4 {[%emt 0:00:07]} exf4+ {[%emt 0:00:26]} 48. Bxf4 {[%emt 0:00:06]} Nxf4 {[%emt 0:00:02]} 49. Kxf4 {[%emt 0:00:07]} Kf6 {[%emt 0:00:01]} 50. e5+ {[%emt 0:00:12]} Ke6 {[%emt 0:00:04]} 51. Ke4 {[%emt 0:00:10]} c3 {[%emt 0:00:08]} 52. Kd3 {[%emt 0:00:03]} Kxe5 {[%emt 0:00:04]} 53. Kxc3 {[%emt 0:00:05]} Kf4 {[%emt 0:00:15]} 54. Kd2 {[%emt 0:00:10]} Kf3 {[%emt 0:00:04]} 55. Ke1 {[%emt 0:00:18]} Kg2 {[%emt 0:00:06]} 56. Ke2 {[%emt 0:00:08]} h5 {[%emt 0:00:04]} 57. Ke1 {[%emt 0:00:29]} h4 {[%emt 0:00:05]} 58. Ke2 {[%emt 0:00:05]} h3 {[%emt 0:00:15]} 59. Ke1 {[%emt 0:00:05]} Kxh2 {[%emt 0:00:13]} 60. Kf2 {[%emt 0:00:05]} 1/2-1/2

[Event "EYCC Girls-U18 2019"]
[Site "Bratislava"]
[Date "2019.08.04"]
[Round "3.2"]
[White "Afonasieva, Anna"]
[Black "Maksimovic, Masa"]
[Result "1-0"]
[ECO "D70"]
[WhiteElo "2370"]
[BlackElo "2102"]
[Annotator "NA"]
[PlyCount "163"]
[EventDate "2019.08.02"]
[EventType "swiss"]
[EventCountry "SVK"]
[SourceTitle "playchess.com"]
[Source "ChessBase"]
[SourceQuality "1"]
[TimeControl "40/5400+30:1800+30"]

1. d4 {[%emt 0:00:00]} Nf6 {[%emt 0:00:00]} 2. c4 {[%emt 0:00:00]} g6 {[%emt 0:00:15]} 3. Nf3 {[%emt 0:00:00]} Bg7 {[%emt 0:00:21]} 4. g3 {[%emt 0:00:00]} O-O {[%emt 0:00:14]} 5. Bg2 {[%emt 0:00:00]} d6 {[%emt 0:00:08]} 6. O-O {[%emt 0:00:00]} Nbd7 {[%emt 0:00:23]} 7. Qc2 {[%emt 0:00:05]} e5 {[%emt 0:00:17]} 8. Rd1 {[%emt 0:00:05]} Qe7 {[%emt 0:00:19]} 9. Nc3 {[%emt 0:00:21]} Re8 {[%emt 0:01:20]} 10. b3 {[%emt 0:03:02]} Nf8 {[%emt 0:02:51]} 11. h3 {[%emt 0:04:15]} h6 {[%emt 0:12:31]} 12. e4 {[%emt 0:02:06]} exd4 {[%emt 0:01:10]} 13. Nxd4 {[%emt 0:00:07]} c6 {[%emt 0:10:12]} 14. Ba3 {[%emt 0:06:19]} N8d7 {[%emt 0:08:05]} 15. Rd2 {[%emt 0:06:12]} Nc5 {[%emt 0:04:43]} 16. Re1 {[%emt 0:02:12]} Nfd7 {[%emt 0:08:40]} 17. b4 {[%emt 0:04:07]} Ne6 {[%emt 0:05:08]} 18. Nce2 {[%emt 0:07:08]} Nxd4 {[%emt 0:12:04]} 19. Nxd4 {[%emt 0:00:06]} Nb6 {[%emt 0:04:03]} 20. Red1 {[%emt 0:06:57]} Be6 {[%emt 0:01:28]} 21. Bf1 {[%emt 0:01:36]} Rad8 {[%emt 0:03:58]} 22. Nxe6 {[%emt 0:06:47]} Qxe6 {[%emt 0:00:20]} 23. c5 {[%emt 0:00:46]} Nc8 {[%emt 0:00:16]} 24. b5 {[%emt 0:01:15]} Qxe4 {[%emt 0:02:04]} 25. Qxe4 {[%emt 0:03:15]} Rxe4 {[%emt 0:00:06]} 26. bxc6 {[%emt 0:00:43]} bxc6 {[%emt 0:00:14]} 27. cxd6 {[%emt 0:00:11]} Bf8 {[%emt 0:03:10]} 28. Bg2 {[%emt 0:09:52]} Rc4 {[%emt 0:00:47]} 29. Re2 {[%emt 0:04:47]} Nb6 {[%emt 0:06:08]} 30. Rde1 {[%emt 0:10:49]} c5 {[%emt 0:03:24]} 31. Re7 {[%emt 0:09:44]} Rxd6 {[%emt 0:02:26]} 32. Rxa7 {[%emt 0:00:09]} Ra4 {[%emt 0:01:13]} 33. Rxa4 {[%emt 0:01:22]} Nxa4 {[%emt 0:00:04]} 34. Bf1 {[%emt 0:03:45]} Rd2 {[%emt 0:01:37]} 35. Re4 {[%emt 0:02:41]} Rxa2 {[%emt 0:01:14]} 36. Rxa4 {[%emt 0:00:54]} c4 {[%emt 0:00:03]} 37. Bxf8 {[%emt 0:01:33]} Rxa4 {[%emt 0:00:03]} 38. Bxh6 {[%emt 0:00:07]} c3 {[%emt 0:00:21]} 39. Bd3 {[%emt 0:00:27]} Ra5 {[%emt 0:03:39]} 40. Be3 {[%emt 0:00:00]} Rd5 {[%emt 0:00:00]} 41. Bc2 {[%emt 0:00:59]} Kf8 {[%emt 0:01:40]} 42. Kg2 {[%emt 0:00:24]} Ke7 {[%emt 0:00:20]} 43. Kf3 {[%emt 0:00:12]} Kd7 {[%emt 0:03:15]} 44. Ke4 {[%emt 0:00:49]} Rh5 {[%emt 0:08:37]} 45. h4 {[%emt 0:00:20]} Ke7 {[%emt 0:04:18]} 46. Kd4 {[%emt 0:00:17]} Ra5 {[%emt 0:00:20]} 47. Kxc3 {[%emt 0:00:12]} f5 {[%emt 0:00:50]} 48. Bb3 {[%emt 0:00:43]} Rb5 {[%emt 0:01:29]} 49. Bc4 {[%emt 0:00:17]} Ra5 {[%emt 0:00:17]} 50. Kd4 {[%emt 0:00:19]} Kf6 {[%emt 0:00:31]} 51. Bg5+ {[%emt 0:00:33]} Kg7 {[%emt 0:00:08]} 52. Bd5 {[%emt 0:00:12]} Rb5 {[%emt 0:03:41]} 53. Ke5 {[%emt 0:00:18]} Ra5 {[%emt 0:00:29]} 54. Be3 {[%emt 0:00:36]} Rb5 {[%emt 0:00:48]} 55. Ke6 {[%emt 0:00:16]} Ra5 {[%emt 0:00:47]} 56. Bf3 {[%emt 0:02:47]} Rb5 {[%emt 0:00:53]} 57. Bd4+ {[%emt 0:02:27]} Kh6 {[%emt 0:02:18]} 58. Kf6 {[%emt 0:00:54]} Ra5 {[%emt 0:00:37]} 59. Be3+ {[%emt 0:00:39]} Kh7 {[%emt 0:00:05]} 60. Kg5 {[%emt 0:00:37]} Kg7 {[%emt 0:01:32]} 61. Bf4 {[%emt 0:01:18]} Ra2 {[%emt 0:00:34]} 62. Be5+ {[%emt 0:02:02]} Kh7 {[%emt 0:00:05]} 63. h5 {[%emt 0:00:38]} gxh5 {[%emt 0:00:26]} 64. Bxh5 {[%emt 0:00:13]} Rxf2 {[%emt 0:00:40]} 65. Kf6 {[%emt 0:01:17]} Rf1 {[%emt 0:05:35]} 66. Bg6+ {[%emt 0:00:51]} Kg8 {[%emt 0:01:05]} 67. Bxf5 {[%emt 0:00:08]} Rg1 {[%emt 0:01:00]} 68. g4 {[%emt 0:00:25]} Rg2 {[%emt 0:00:58]} 69. g5 {[%emt 0:00:19]} Rg1 {[%emt 0:00:43]} 70. Bd6 {[%emt 0:02:24]} Rg2 {[%emt 0:00:52]} 71. Bc5 {[%emt 0:02:20]} Rg3 {[%emt 0:00:53]} 72. Kg6 {[%emt 0:00:14]} Rxg5+ {[%emt 0:01:21]} 73. Kxg5 {[%emt 0:00:04]} Kf7 {[%emt 0:00:03]} 74. Bd7 {[%emt 0:00:06]} Kg7 {[%emt 0:00:07]} 75. Be6 {[%emt 0:00:05]} Kh7 {[%emt 0:00:09]} 76. Bf8 {[%emt 0:00:26]} Kh8 {[%emt 0:00:11]} 77. Kf6 {[%emt 0:00:09]} Kh7 {[%emt 0:00:08]} 78. Bf7 {[%emt 0:00:06]} Kh8 {[%emt 0:00:10]} 79. Bd5 {[%emt 0:00:38]} Kh7 {[%emt 0:00:06]} 80. Kf7 {[%emt 0:00:05]} Kh8 {[%emt 0:00:10]} 81. Bg7+ {[%emt 0:00:04]} Kh7 {[%emt 0:00:05]} 82. Be4# {[%emt 0:00:03]} 1-0

[Event "EYCC Girls-U18 2019"]
[Site "Bratislava"]
[Date "2019.08.04"]
[Round "3.3"]
[White "Beydullayeva, Govhar"]
[Black "Ciocan, Maria-Alexandra"]
[Result "1-0"]
[ECO "E62"]
[WhiteElo "2282"]
[BlackElo "2062"]
[Annotator "NA"]
[PlyCount "65"]
[EventDate "2019.08.02"]
[EventType "swiss"]
[EventCountry "SVK"]
[SourceTitle "playchess.com"]
[Source "ChessBase"]
[SourceQuality "1"]
[TimeControl "40/5400+30:1800+30"]

1. d4 {[%emt 0:00:00]} Nf6 {[%emt 0:00:00]} 2. Nf3 {[%emt 0:00:07]} g6 {[%emt 0:00:21]} 3. c4 {[%emt 0:00:06]} Bg7 {[%emt 0:00:05]} 4. g3 {[%emt 0:00:08]} O-O {[%emt 0:00:08]} 5. Bg2 {[%emt 0:00:03]} d6 {[%emt 0:00:06]} 6. Nc3 {[%emt 0:00:06]} c6 {[%emt 0:00:27]} 7. O-O {[%emt 0:00:32]} Qa5 {[%emt 0:00:17]} 8. e4 {[%emt 0:02:15]} e5 {[%emt 0:01:01]} 9. h3 {[%emt 0:01:13]} Nbd7 {[%emt 0:01:31]} 10. Qc2 {[%emt 0:12:11]} exd4 {[%emt 0:07:25]} 11. Nxd4 {[%emt 0:02:04]} Ne5 {[%emt 0:01:17]} 12. b3 {[%emt 0:01:35]} Qb6 {[%emt 0:10:01]} 13. Be3 {[%emt 0:01:52]} c5 {[%emt 0:01:30]} 14. Nde2 {[%emt 0:01:47]} a6 {[%emt 0:02:51]} 15. Rad1 {[%emt 0:00:32]} Qc7 {[%emt 0:18:02]} 16. f4 {[%emt 0:08:31]} Nc6 {[%emt 0:01:04]} 17. Rd2 {[%emt 0:07:54]} Re8 {[%emt 0:10:13]} 18. Rfd1 {[%emt 0:04:02]} Nh5 {[%emt 0:12:08]} 19. Nd5 {[%emt 0:05:27]} Qa5 {[%emt 0:06:53]} 20. g4 {[%emt 0:03:18]} Nf6 {[%emt 0:01:00]} 21. Nxf6+ {[%emt 0:01:31]} Bxf6 {[%emt 0:00:06]} 22. Rxd6 {[%emt 0:01:13]} Nb4 {[%emt 0:01:08]} 23. Qb1 {[%emt 0:00:21]} Be7 {[%emt 0:02:07]} 24. R6d2 {[%emt 0:00:50]} b5 {[%emt 0:00:27]} 25. e5 {[%emt 0:10:32]} Rb8 {[%emt 0:00:14]} 26. Qc1 {[%emt 0:00:19]} bxc4 {[%emt 0:03:03]} 27. bxc4 {[%emt 0:01:37]} Qc7 {[%emt 0:07:08]} 28. Nc3 {[%emt 0:03:13]} Bh4 {[%emt 0:02:54]} 29. a3 {[%emt 0:06:28]} Nc6 {[%emt 0:00:23]} 30. Nd5 {[%emt 0:01:06]} Qb7 {[%emt 0:03:01]} 31. g5 {[%emt 0:03:12]} Re6 {[%emt 0:01:43]} 32. Nf6+ {[%emt 0:00:45]} Kg7 {[%emt 0:00:13]} 33. Rd8 {[%emt 0:09:06]} 1-0

[Event "EYCC Girls-U18 2019"]
[Site "Bratislava"]
[Date "2019.08.04"]
[Round "3.4"]
[White "Cramling Bellon, Anna"]
[Black "Antova, Gabriela"]
[Result "1/2-1/2"]
[ECO "A06"]
[WhiteElo "2030"]
[BlackElo "2257"]
[Annotator "NA"]
[PlyCount "61"]
[EventDate "2019.08.02"]
[EventType "swiss"]
[EventCountry "SVK"]
[SourceTitle "playchess.com"]
[Source "ChessBase"]
[SourceQuality "1"]
[TimeControl "40/5400+30:1800+30"]

1. Nf3 {[%emt 0:00:00]} d5 {[%emt 0:00:31]} 2. b3 {[%emt 0:00:00]} Nf6 {[%emt 0:01:19]} 3. Bb2 {[%emt 0:00:02]} g6 {[%emt 0:04:20]} 4. e3 {[%emt 0:00:36]} Bg7 {[%emt 0:00:50]} 5. d4 {[%emt 0:00:32]} O-O {[%emt 0:02:04]} 6. Nbd2 {[%emt 0:01:23]} b6 {[%emt 0:05:29]} 7. c4 {[%emt 0:05:38]} Bb7 {[%emt 0:07:29]} 8. Be2 {[%emt 0:04:28]} Nbd7 {[%emt 0:02:08]} 9. O-O {[%emt 0:00:46]} c5 {[%emt 0:01:26]} 10. Qc2 {[%emt 0:13:47]} Rc8 {[%emt 0:05:01]} 11. dxc5 {[%emt 0:00:32]} Nxc5 {[%emt 0:03:15]} 12. Rad1 {[%emt 0:00:11]} Qe8 {[%emt 0:07:18]} 13. Qb1 {[%emt 0:08:38]} dxc4 {[%emt 0:12:27]} 14. Nxc4 {[%emt 0:04:43]} Qc6 {[%emt 0:03:20]} 15. Nce5 {[%emt 0:15:50]} Qe4 {[%emt 0:03:09]} 16. Qa1 {[%emt 0:07:31]} Qf5 {[%emt 0:09:48]} 17. Ne1 {[%emt 0:13:04]} Rcd8 {[%emt 0:06:49]} 18. f4 {[%emt 0:11:40]} Rxd1 {[%emt 0:06:16]} 19. Qxd1 {[%emt 0:00:08]} Nce4 {[%emt 0:07:09]} 20. N1f3 {[%emt 0:02:19]} Qc8 {[%emt 0:00:47]} 21. Bc4 {[%emt 0:02:18]} Nd6 {[%emt 0:00:29]} 22. Bd3 {[%emt 0:02:51]} Nfe4 {[%emt 0:01:23]} 23. Qa1 {[%emt 0:00:43]} Nf5 {[%emt 0:01:26]} 24. Rc1 {[%emt 0:00:19]} Qd8 {[%emt 0:01:16]} 25. Bd4 {[%emt 0:02:15]} Nxd4 {[%emt 0:00:22]} 26. Qxd4 {[%emt 0:00:02]} Nc5 {[%emt 0:01:59]} 27. Bc4 {[%emt 0:00:28]} e6 {[%emt 0:00:41]} 28. Rd1 {[%emt 0:00:26]} Qxd4 {[%emt 0:01:10]} 29. Rxd4 {[%emt 0:00:55]} Bf6 {[%emt 0:01:43]} 30. b4 {[%emt 0:01:05]} Na6 {[%emt 0:01:12]} 31. a3 {[%emt 0:00:41]} 1/2-1/2